lending/lending_fUSD_20250316
["ID","MTS","AMOUNT","RATE_DAILY","PERIOD"]
[356223284,1742110245322,-1429.0,0.00016385,2]
[356223285,1742110245332,-541.0,0.00016385,2]
[356223286,1742110245342,-4079.0,0.00016385,2]
[356223287,1742110245353,-907.0,0.00016385,2]
[356223288,1742110245363,-1013.0,0.00016385,2]
[356223289,1742110245373,-3935.0,0.00016385,2]
[356223290,1742110245384,-151.0,0.00016385,2]
[356223291,1742110245395,-1279.0,0.00016385,2]
[356223292,1742110245406,-739.0,0.000164,2]
[356223293,1742110245417,-739.0,0.00016427,2]
[356223294,1742110245427,-150.45,0.00016438,2]
[356223295,1742110245438,-739.0,0.00016455,2]
[356223296,1742110245449,-739.0,0.00016482,2]
[356223297,1742110245459,-300.24,0.00016493,30]
[356223298,1742110245471,-2000.0,0.00016504,2]
[356223299,1742110245481,-739.0,0.0001651,2]
[356223300,1742110245492,-739.0,0.00016537,2]
[356223301,1742110245503,-739.0,0.00016564,2]
[356223302,1742110245515,-739.0,0.00016592,2]
[356223303,1742110245526,-739.0,0.00016619,2]
[356223304,1742110245536,-739.0,0.00016647,2]
[356223305,1742110245547,-739.0,0.00016674,2]
[356223306,1742110245558,-739.0,0.00016701,2]
[356223307,1742110245568,-193.56,0.00016712,2]
[356223308,1742110245579,-739.0,0.00016729,2]
[356223309,1742110245589,-739.0,0.00016756,2]
[356223310,1742110245601,-739.0,0.00016784,2]
[356223311,1742110245613,-739.0,0.00016811,2]
[356223314,1742110245624,-739.0,0.00016838,2]
[356223315,1742110245634,-739.0,0.00016866,2]
[356223316,1742110245645,-739.0,0.00016893,2]
[356223317,1742110245655,-743.96089387,0.00016921,2]
[356223318,1742110245666,-179.45,0.00016926,2]
[356223319,1742110245677,-157.37827045,0.00017084,2]
[356223320,1742110245688,-150.34,0.00017102,2]
[356223321,1742110245698,-2547.30894835,0.00017245,2]
[356223322,1742110245708,-179.45,0.00017596,2]
[356223323,1742110245719,-600.0,0.00017808,2]
[356223324,1742110245729,-1000.0,0.00017908,2]
[356223325,1742110245739,-154.86986133,0.00018018,2]
[356223326,1742110245750,-200.0,0.00018082,2]
[356223327,1742110245761,-150.41,0.00018133,2]
[356223328,1742110245773,-8950.53775719,0.00018143,2]
[356223329,1742110245784,-5000.0,0.00018143,2]
[356223330,1742110245795,-5000.0,0.00018143,2]
[356223331,1742110245806,-5000.0,0.00018143,2]
[356223332,1742110245816,-179.45,0.00018267,2]
[356223333,1742110245827,-6681.3110679,0.00018345,2]
[356223334,1742110245837,-5000.0,0.00018345,2]
[356223335,1742110245848,-150.34,0.00018472,2]
[356223336,1742110245859,-1099.59,0.00018477,2]
[356223337,1742110245870,-150.45,0.00018493,2]
[356223338,1742110245880,-165.86,0.000186,2]
[356223339,1742110245891,-2547.30894835,0.00018831,2]
[356223340,1742110245901,-225.53334,0.0001885,10]
[356223341,1742110245912,-259.14,0.000189,7]
[356223342,1742110245922,-179.45,0.00018938,2]
[356223343,1742110245932,-250.0,0.00019,2]
[356223344,1742110245943,-1643.01174172,0.00019,2]
[356223345,1742110245954,-890.34,0.00019041,2]
[356223346,1742110245965,-779.41,0.00019041,2]
[356223347,1742110245977,-779.41,0.00019041,2]
[356223348,1742110245988,-779.41,0.00019041,2]
[356223349,1742110245999,-13966.73515852,0.00019233,2]
[356223350,1742110246011,-664.501,0.00019385,2]
[356223351,1742110246022,-641.0,0.00019385,2]
[356223352,1742110246034,-571.0,0.00019385,2]
[356223353,1742110246048,-787.0,0.00019385,2]
[356223354,1742110246059,-1271.0,0.00019385,2]
[356223355,1742110246071,-1429.0,0.00019385,2]
[356223356,1742110246083,-541.0,0.00019385,2]
[356223357,1742110246093,-4079.0,0.00019385,2]
[356223358,1742110246103,-907.0,0.00019385,2]
[356223359,1742110246116,-1013.0,0.00019385,2]
[356223360,1742110246126,-3935.0,0.00019385,2]
[356223361,1742110246138,-151.0,0.00019385,2]
[356223362,1742110246148,-1279.0,0.00019385,2]
[356223363,1742110246159,-890.7,0.00019452,2]
[356223364,1742110246170,-779.41,0.00019452,2]
[356223365,1742110246180,-59282.84366424,0.000196,2]
[356223366,1742110246192,-515.79276402,0.0001961,2]
[356223367,1742110246202,-511.87643481,0.0001961,2]
[356223368,1742110246213,-515.90309237,0.0001961,2]
[356223369,1742110246224,-500.0,0.0001961,2]
[356223370,1742110246235,-500.0,0.0001961,2]
[356223371,1742110246247,-500.0,0.0001961,2]
[356223372,1742110246257,-500.0,0.0001961,2]
[356223373,1742110246269,-500.0,0.0001961,2]
[356223374,1742110246280,-500.0,0.0001961,2]
[356223375,1742110246293,-500.0,0.0001961,2]
[356223376,1742110246303,-500.0,0.0001961,2]
[356223377,1742110246314,-615.05318277,0.0001961,2]
[356223378,1742110246325,-500.0,0.0001961,2]
[356223379,1742110246335,-798.40291828,0.0001961,2]
[356223380,1742110246346,-500.0,0.0001961,2]
[356223381,1742110246357,-860.23342995,0.0001961,2]
[356223382,1742110246368,-3300.04304631,0.0001961,2]
[356223383,1742110246380,-302.62,0.00019863,2]
[356223384,1742110246785,-301.32,0.00019863,2]
[356223385,1742110246808,-300.0,0.00019863,2]
[356223386,1742110246827,-381.81,0.00019863,2]
[356223387,1742110246837,-897.91,0.00019863,2]
[356223388,1742110246849,-352.57,0.00019863,2]
[356223389,1742110246859,-3013.13832334,0.0001987,2]
[356223390,1742110246868,-1000.0,0.00019898,2]
[356223391,1742110246877,-500.0,0.000199,7]
[356223392,1742110246887,-514.0,0.0001997,2]
[356223393,1742110246896,-150.41,0.0001999,2]
[356223394,1742110246906,-32682.65204389,0.00019999,2]
[356223395,1742110246916,-10000.0,0.0002,2]
[356223396,1742110246925,-381.0,0.0002,2]
[356223397,1742110246935,-91341.30556418,0.0002,2]
[356223398,1742110246945,-299.21642222,0.0002,2]
[356223399,1742110246954,-10000.0,0.0002,2]
[356223400,1742110246964,-1472.98847721,0.0002,2]
[356223401,1742110246973,-4274.95055286,0.0002,2]
[356223402,1742110246984,-239.4839328,0.0002,2]
[356223403,1742110246993,-50000.0,0.0002,2]
[356223404,1742110247003,-7500.0,0.0002,2]
[356223405,1742110247012,-3844.58104156,0.0002,2]
[356223406,1742110247022,-45865.71333135,0.0002,2]
[356223407,1742110247031,-3950.0,0.0002,2]
[356223408,1742110247041,-1243.44394497,0.0002,2]
[356223409,1742110247050,-762.30031608,0.0002,7]
[356223410,1742110247060,-201.43428613,0.0002,10]
[356223411,1742110247070,-11764.09087897,0.0002,2]
[356223412,1742110247082,-1003.28856553,0.0002,2]
[356223413,1742110247091,-1729.77780708,0.0002,2]
[356223414,1742110247100,-151.0,0.0002,2]
[356223415,1742110247109,-151.0,0.0002,2]
[356223416,1742110247120,-151.0,0.0002,2]
[356223417,1742110247129,-151.0,0.0002,2]
[356223418,1742110247139,-151.0,0.0002,2]
[356223419,1742110247148,-151.0,0.0002,2]
[356223420,1742110247158,-152.093567,0.0002,2]
[356223421,1742110247167,-500.448055,0.0002,2]
[356223422,1742110247177,-150.41,0.0002,2]
[356223423,1742110247186,-24031.59824377,0.0002001,2]
[356223424,1742110247195,-8938.15399189,0.0002001,2]
[356223425,1742110247205,-4928.20020039,0.0002001,2]
[356223426,1742110247216,-5772.0,0.0002001,2]
[356223427,1742110247225,-41866.20137495,0.0002015,2]
[356223428,1742110247235,-1663.61821437,0.0002015,2]
[356223429,1742110247244,-151.0,0.0002015,2]
[356223430,1742110247253,-151.0,0.0002015,2]
[356223431,1742110247262,-227.442725,0.0002015,2]
[356223432,1742110247272,-745.0,0.00020174,2]
[356223433,1742110247282,-2547.30894835,0.00020417,2]
[356223434,1742110247292,-20540.47,0.00020548,2]
[356223435,1742110247301,-174.3,0.00020548,2]
[356223436,1742110247311,-150.45,0.00020548,2]
[356223437,1742110247321,-174.835068,0.00020548,2]
[356223438,1742110247330,-151.0,0.00020548,2]
[356223439,1742110247339,-152.907973,0.00020548,2]
[356223440,1742110247348,-151.0,0.00020548,2]
[356223441,1742110247358,-151.0,0.00020548,2]
[356223442,1742110247367,-151.0,0.00020548,2]
[356223443,1742110247377,-21782.80748291,0.000207,2]
[356223444,1742110247386,-1099.59,0.0002074,2]
[356223445,1742110247395,-7930.31,0.00020822,2]
[356223446,1742110247404,-300.24,0.00020971,30]
[356223447,1742110247414,-300.0,0.00021,2]
[356223448,1742110247423,-20000.0,0.00021,2]
[356223449,1742110247432,-216.76829367,0.00021,120]
[356223450,1742110247441,-1147.36056492,0.00021,2]
[356223451,1742110247450,-189.36616785,0.00021,2]
[356223452,1742110247459,-758.57995178,0.000216,2]
[356223453,1742110247469,-1330.23383843,0.00021642,2]
[356223454,1742110247478,-1000.0,0.00021888,2]
[356223455,1742110247487,-222.0,0.000219,2]
[356223456,1742110247496,-1000.0,0.00021918,2]
[356223457,1742110247506,-1000.0,0.00021918,2]
[356223458,1742110247516,-1000.0,0.00021918,2]
[356223459,1742110247526,-1000.0,0.00021918,2]
[356223460,1742110247536,-1000.0,0.00021918,2]
[356223461,1742110247546,-1000.0,0.00021918,2]
[356223462,1742110247555,-1000.0,0.00021918,2]
[356223463,1742110247568,-1000.0,0.00021918,2]
[356223464,1742110247578,-1000.0,0.00021918,2]
[356223465,1742110247587,-1000.0,0.00021918,2]
[356223466,1742110247597,-1000.0,0.00021918,2]
[356223467,1742110247606,-1000.0,0.00021918,2]
[356223468,1742110247615,-1000.0,0.00021918,2]
[356223469,1742110247624,-1000.0,0.00021918,2]
[356223470,1742110247634,-1000.0,0.00021918,2]
[356223471,1742110247644,-1000.0,0.00021918,2]
[356223472,1742110247653,-1000.0,0.00021918,2]
[356223473,1742110247663,-1000.0,0.00021918,2]
[356223474,1742110247672,-1016.0,0.00021918,2]
[356223475,1742110247682,-1000.0,0.00021918,2]
[356223476,1742110247691,-1000.0,0.00021918,2]
[356223477,1742110247701,-1000.0,0.00021918,2]
[356223478,1742110247710,-1000.0,0.00021918,2]
[356223479,1742110247719,-1000.0,0.00021918,2]
[356223480,1742110247728,-1000.0,0.00021918,2]
[356223481,1742110247738,-1000.0,0.00021918,2]
[356223482,1742110247748,-1000.0,0.00021918,2]
[356223483,1742110247757,-1000.0,0.00021918,2]
[356223484,1742110247767,-1000.0,0.00021918,2]
[356223485,1742110247776,-1000.0,0.00021918,2]
[356223486,1742110247786,-1000.0,0.00021918,2]
[356223487,1742110247795,-1000.0,0.00021918,2]
[356223488,1742110247804,-1000.0,0.00021918,2]
[356223489,1742110247814,-1000.0,0.00021918,2]
[356223490,1742110247823,-935.0,0.00021918,2]
[356223491,1742110247833,-151.0,0.00021918,7]
[356223492,1742110247842,-500.0,0.00021973,2]
[356223493,1742110247852,-2547.30894835,0.00022003,3]
[356223494,1742110247862,-13966.73515852,0.00022344,2]
[356223495,1742110247871,-193.753,0.00022385,2]
[356223496,1742110247880,-571.0,0.00022385,2]
[356223497,1742110247890,-780.0,0.00022385,2]
[356223498,1742110247899,-1271.0,0.00022385,2]
[356223499,1742110247909,-1423.0,0.00022385,2]
[356223500,1742110247919,-541.0,0.00022385,2]
[356223501,1742110247929,-4079.0,0.00022385,2]
[356223502,1742110247938,-907.0,0.00022385,2]
[356223503,1742110247947,-1013.0,0.00022385,2]
[356223504,1742110247957,-3935.0,0.00022385,2]
[356223505,1742110247966,-151.0,0.00022385,2]
[356223506,1742110247976,-1279.0,0.00022385,2]
[356223507,1742110247985,-150.45,0.00022603,2]
[356223508,1742110247994,-625.96452127,0.00022842,2]
[356223509,1742110248004,-150.26588903,0.00022842,2]
[356223510,1742110248013,-350.0,0.00023,2]
[356223511,1742110248023,-1099.59,0.00023004,2]
[356223512,1742110248033,-500.0,0.00023011,30]
[356223513,1742110248042,-500.0,0.00023011,30]
[356223514,1742110248051,-500.0,0.00023011,30]
[356223515,1742110248061,-500.0,0.00023011,30]
[356223516,1742110248071,-500.0,0.00023011,30]
[356223517,1742110248080,-500.0,0.00023011,30]
[356223518,1742110248090,-500.0,0.00023011,30]
[356223519,1742110248099,-500.0,0.00023011,30]
[356223520,1742110248110,-500.0,0.00023011,30]
[356223521,1742110248119,-500.0,0.00023011,30]
[356223522,1742110248127,-500.0,0.00023011,30]
[356223523,1742110248135,-500.0,0.00023011,30]
[356223524,1742110248144,-500.0,0.00023011,30]
[356223525,1742110248152,-500.0,0.00023011,30]
[356223526,1742110248161,-500.0,0.00023011,30]
[356223527,1742110248171,-500.0,0.00023011,30]
[356223528,1742110248180,-500.0,0.00023011,30]
[356223529,1742110248189,-500.0,0.00023011,30]
[356223530,1742110248199,-500.0,0.00023011,30]
[356223531,1742110248208,-500.0,0.00023011,30]
[356223532,1742110248217,-151.0,0.00023011,7]
[356223533,1742110248227,-500.21133927,0.00023011,30]
[356223534,1742110248236,-500.0,0.00023011,30]
[356223535,1742110248246,-500.0,0.00023011,30]
[356223536,1742110248255,-500.0,0.00023011,30]
[356223537,1742110248265,-500.0,0.00023011,30]
[356223538,1742110248274,-500.0,0.00023011,30]
[356223539,1742110248284,-911.29879426,0.00023011,30]
[356223540,1742110248294,-500.0,0.00023011,30]
[356223541,1742110248304,-500.0,0.00023011,30]
[356223542,1742110248314,-500.0,0.00023011,30]
[356223543,1742110248323,-500.0,0.00023011,30]
[356223544,1742110248333,-500.0,0.00023011,30]
[356223545,1742110248343,-500.0,0.00023011,30]
[356223546,1742110248352,-500.0,0.00023011,30]
[356223547,1742110248363,-500.0,0.00023011,30]
[356223548,1742110248372,-975.48648796,0.00023011,30]
[356223549,1742110248383,-151.0,0.00023011,7]
[356223550,1742110248392,-151.0,0.00023011,7]
[356223551,1742110248401,-151.0,0.00023011,7]
[356223552,1742110248411,-181.140779,0.00023011,7]
[356223553,1742110248420,-303.06,0.00023014,2]
[356223554,1742110248430,-351.67,0.00023014,2]
[356223555,1742110248441,-150.41,0.0002358,2]
[356223556,1742110248451,-2547.30894835,0.0002359,3]
[356223557,1742110248462,-155.22,0.00023836,2]
[356223558,1742110248474,-225.53335,0.0002385,10]
[356223559,1742110248485,-1000.0,0.00023877,2]
[356223560,1742110248496,-157.37827045,0.00023883,2]
[356223561,1742110248506,-229.16,0.00024336,3]
[356223562,1742110248518,-3694.919,0.00024362,6]
[356223563,1742110248528,-1517.02,0.000245,2]
[356223564,1742110248539,-1517.02,0.000246,2]
[356223565,1742110248549,-150.45,0.00024658,2]
[356223566,1742110248559,-153.6913098,0.000247,2]
[356223567,1742110248569,-1766.33911701,0.000247,2]
[356223568,1742110248579,-154.71519931,0.000247,2]
[356223569,1742110248590,-1119.4387447,0.00024783,2]
[356223570,1742110248599,-3509.3812439,0.00024783,2]
[356223571,1742110248610,-2602.8511878,0.00024783,2]
[356223572,1742110248619,-150.41,0.0002479,2]
[356223573,1742110248629,-150.41,0.0002479,2]
[356223574,1742110248639,-151.0,0.000248,7]
[356223575,1742110248649,-151.0,0.000248,7]
[356223576,1742110248659,-151.0,0.000248,7]
[356223577,1742110248671,-247499.83917705,0.000248,2]
[356223578,1742110248979,-5369.03036885,0.000248,2]
[356223579,1742110248991,-293479.8137981,0.000248,2]
[356223580,1742110249001,-151.0,0.000248,7]
[356223581,1742110249010,-152.109801,0.000248,7]
[356223582,1742110249019,-151.0,0.000248,7]
[356223583,1742110249029,-150.41,0.0002489,2]
[356223584,1742110249039,-150.41,0.0002489,2]
[356223585,1742110249049,-150.41,0.0002489,2]
[356223586,1742110249059,-152.125015,0.000249,7]
[356223587,1742110249068,-24902.72138591,0.000249,2]
[356223588,1742110250958,-151.0,0.0002,2]
[356223589,1742110250967,-55949.0000002,0.000249,2]
[356223590,1742110250979,-3272.16886646,0.000249,2]
[356223617,1742111431844,-153.702285,0.00011814,2]
[356223618,1742111431855,-150.0,0.00011874,2]
[356223619,1742111431866,-1279.0,0.00011875,2]
[356223620,1742111431878,-959.36072984,0.00011875,2]
[356223629,1742111437794,-1074.63927016,0.00011875,2]
[356223630,1742111437804,-1547.37,0.00011875,2]
[356223631,1742111437817,-1228.42869542,0.00011875,2]
[356223632,1742111437964,-2706.57130458,0.00011875,2]
[356223633,1742111437973,-151.0,0.00011875,2]
[356223634,1742111437983,-1013.0,0.00011875,2]
[356223635,1742111437993,-2034.0,0.00014875,2]
[356223636,1742111438002,-3273.49684242,0.00014875,2]
[356223638,1742111440005,-486.85975831,0.00014875,2]
[356223639,1742111440017,-174.64339927,0.00014875,2]
[356223640,1742111440027,-151.0,0.00014875,2]
[356223641,1742111440037,-762.681,0.00014875,2]
[356223642,1742111440047,-1783.11626399,0.00016,2]
[356223643,1742111440056,-1783.11626384,0.00016348,2]
[356223644,1742111440066,-2388.32,0.00016385,2]
[356223645,1742111440076,-299.99,0.00016385,4]
[356223646,1742111440086,-193.56,0.00016712,2]
[356223647,1742111440095,-154.45888193,0.000175,2]
[356223648,1742111440104,-1783.11626384,0.00017797,2]
[356223649,1742111440113,-2034.0,0.00017875,2]
[356223650,1742111440123,-3161.274,0.00017875,2]
[356223651,1742111440132,-165.87,0.000186,2]
[356223652,1742111440141,-250.0,0.00019,2]
[356223653,1742111440152,-1783.11626384,0.00019245,2]
[356223654,1742111440161,-151.0,0.0002,2]
[356223655,1742111440171,-151.0,0.0002,2]
[356223656,1742111440180,-1783.11626384,0.00020693,2]
[356223657,1742111440189,-2034.0,0.00020875,2]
[356223658,1742111440199,-300.0,0.00021,2]
[356223659,1742111440209,-824.69,0.00021498,2]
[356223660,1742111440219,-30.134427,0.00021917,2]
[356223661,1742111440231,-221.865573,0.00021917,2]
[356223662,1742111440241,-188.976473,0.00021918,7]
[356223663,1742111440251,-1783.11626384,0.00022141,3]
[356223664,1742111440261,-350.0,0.00023,2]
[356223665,1742111440271,-500.0,0.00023011,30]
[356223666,1742111440280,-68.33391401,0.00023011,30]
[356223667,1742111440292,-431.66608599,0.00023011,30]
[356223668,1742111440302,-146.682735,0.00023011,30]
[356223669,1742111440316,-304.4336466,0.00023011,30]
[356223670,1742111440389,-48.8836184,0.00023011,30]
[356223671,1742111440399,-393.99638155,0.00023011,30]
[356223672,1742111440440,-106.00361845,0.00023011,30]
[356223673,1742111440450,-500.0,0.00023011,30]
[356223674,1742111440460,-362.29271321,0.00023011,30]
[356223682,1742111442974,-137.70728679,0.00023011,30]
[356223684,1742111442984,-124.7409351,0.00023011,30]
[356223685,1742111442996,-375.2590649,0.00023011,30]
[356223686,1742111443006,-252.0,0.00023287,2]
[356223687,1742111443016,-230.46824004,0.00023384,120]
[356223688,1742111443025,-161.59871429,0.00023384,120]
[356223689,1742111443035,-5098.54063245,0.0002342,2]
[356223690,1742111443058,-666.7047115,0.0002342,2]
[356223691,1742111443071,-18134.75465605,0.0002342,2]
[356223692,1742111443080,-1000.0,0.00023432,2]
[356223693,1742111443090,-250.0,0.00023464,2]
[356223694,1742111443100,-150.0,0.00023471,2]
[356223695,1742111443110,-250.2,0.00023508,30]
[356223696,1742111443119,-2000.0,0.00023547,2]
[356223697,1742111443129,-1783.11626384,0.0002359,3]
[356223698,1742111443138,-200.0,0.00023601,2]
[356223699,1742111443147,-150.0,0.00023646,7]
[356223700,1742111443157,-824.69,0.00023762,2]
[356223701,1742111443167,-155.22,0.00023836,2]
[356223702,1742111443176,-2034.0,0.00023875,2]
[356223703,1742111443186,-382.46,0.00023879,2]
[356223704,1742111443196,-382.46,0.00023942,2]
[356223705,1742111443206,-382.46,0.00024004,2]
[356223706,1742111443215,-382.46,0.00024067,2]
[356223707,1742111443225,-382.46,0.0002413,2]
[356223708,1742111443234,-382.46,0.00024193,2]
[356223709,1742111443244,-382.46,0.00024256,2]
[356223710,1742111443254,-382.46,0.00024319,2]
[356223711,1742111443263,-2955.935,0.00024362,6]
[356223712,1742111443469,-382.46,0.00024382,2]
[356223713,1742111443479,-382.46,0.00024444,2]
[356223714,1742111443489,-382.46,0.00024507,2]
[356223715,1742111443499,-382.46,0.0002457,2]
[356223716,1742111443508,-382.46,0.00024633,2]
[356223717,1742111443518,-252.0,0.00024657,2]
[356223718,1742111443528,-6628.08459,0.0002466,2]
[356223719,1742111443538,-382.46,0.00024696,2]
[356223720,1742111443548,-200.0,0.00024701,2]
[356223721,1742111443557,-382.46,0.00024759,2]
[356223722,1742111443567,-382.46,0.00024822,2]
[356223723,1742111443576,-382.46,0.00024884,2]
[356223724,1742111443586,-227.66544211,0.00024895,2]
[356223726,1742111443596,-746.2924965,0.00024896,2]
[356223728,1742111443606,-3967.3753606,0.00024896,2]
[356223730,1742111443615,-2940.337855,0.00024896,2]
[356223732,1742111443625,-2482.2635605,0.00024896,2]
[356223734,1742111443636,-286.7258428,0.00024896,2]
[356223736,1742111443646,-152.463886,0.000249,7]
[356223738,1742111443655,-151.0,0.000249,7]
[356223739,1742111443665,-169.15,0.000249,34]
[356223740,1742111443675,-382.46,0.00024947,2]
[356223741,1742111443686,-581.52379253,0.00025,30]
[356223742,1742111443695,-400.0,0.00025,2]
[356223743,1742111443705,-382.46,0.0002501,2]
[356223744,1742111443714,-1783.11626384,0.00025038,4]
[356223745,1742111443723,-382.46,0.00025073,2]
[356223746,1742111443736,-350.03462788,0.000253,10]
[356223747,1742111443747,-824.69,0.00026026,2]
[356223748,1742111443756,-252.0,0.00026027,2]
[356223749,1742111443766,-922.61,0.00026137,120]
[356223750,1742111443776,-200.0,0.0002632,2]
[356223751,1742111443787,-151.0,0.00026361,7]
[356223752,1742111443796,-151.0,0.00026361,7]
[356223753,1742111443807,-1000.0,0.00026361,2]
[356223754,1742111443816,-1783.11626384,0.00026486,4]
[356223755,1742111443826,-307.12,0.00026849,2]
[356223756,1742111443835,-152.79,0.00026849,2]
[356223757,1742111443845,-204.84,0.00026849,2]
[356223758,1742111443854,-1820.296,0.00026875,2]
[356223759,1742111443864,-172.27952004,0.00027,30]
[356223760,1742111443874,-450.0,0.00027,2]
[356223761,1742111443884,-252.0,0.00027397,2]
[356223762,1742111443893,-1783.11626384,0.00027934,4]
[356223763,1742111443903,-250.2,0.00027986,30]
[356223764,1742111443913,-9339.11841984,0.00028,60]
[356223765,1742111443923,-824.69,0.0002829,2]
[356223766,1742111443933,-500.0,0.000283,10]
[356223767,1742111443943,-500.0,0.000283,10]
[356223768,1742111443952,-500.0,0.000283,10]
[356223769,1742111443962,-500.0,0.000283,10]
[356223770,1742111443971,-500.0,0.000283,10]
[356223771,1742111443981,-503.75407807,0.000283,10]
[356223772,1742111443990,-500.0,0.000283,10]
[356223773,1742111444000,-500.0,0.000283,10]
[356223774,1742111444010,-500.0,0.000283,10]
[356223775,1742111444019,-500.0,0.000283,10]
[356223776,1742111444029,-252.0,0.00028767,2]
[356223777,1742111444038,-1312.0354,0.000289,2]
[356223778,1742111444048,-6983.36757926,0.000289,2]
[356223779,1742111444058,-17007.96853062,0.00029,30]
[356223780,1742111444068,-12593.9837983,0.00029,7]
[356223781,1742111444078,-500.0,0.00029,2]
[356223782,1742111444087,-173.89,0.00029,2]
[356223783,1742111444096,-1000.0,0.0002929,2]
[356223784,1742111444106,-1783.11626384,0.00029383,5]
[356223785,1742111444116,-676.0,0.0002966,5]
[356223786,1742111444125,-500.0,0.00029673,5]
[356223787,1742111444135,-182.0,0.00029677,120]
[356223788,1742111444145,-245.44126893,0.00029677,60]
[356223789,1742111444154,-167.45528733,0.00029677,30]
[356223790,1742111444164,-360.96114175,0.00029677,2]
[356223791,1742111444173,-150.0,0.00029677,30]
[356223792,1742111444183,-1000.0,0.00029677,30]
[356223793,1742111444192,-474.70588329,0.00029677,60]
[356223794,1742111444202,-864.0,0.00029677,120]
[356223795,1742111444211,-1000.0,0.00029677,60]
[356223796,1742111444221,-1000.0,0.00029677,30]
[356223797,1742111444230,-1000.0,0.00029677,120]
[356223798,1742111444239,-1000.0,0.00029677,30]
[356223799,1742111444248,-1000.0,0.00029677,60]
[356223800,1742111444258,-1000.0,0.00029677,60]
[356223801,1742111444267,-1000.0,0.00029677,60]
[356223802,1742111444277,-1000.0,0.00029677,60]
[356223803,1742111444286,-1000.0,0.00029677,60]
[356223804,1742111444295,-1000.0,0.00029677,30]
[356223805,1742111444304,-1000.0,0.00029677,30]
[356223806,1742111444314,-1000.0,0.00029677,60]
[356223807,1742111444324,-1000.0,0.00029677,30]
[356223808,1742111444333,-1144.36926085,0.00029677,120]
[356223809,1742111444343,-386.68405475,0.00029677,120]
[356223810,1742111444353,-158.4,0.00029677,2]
[356223811,1742111444363,-380.33189911,0.00029677,90]
[356223812,1742111444372,-508.00851756,0.00029677,30]
[356223813,1742111444381,-379.67308479,0.00029677,30]
[356223814,1742111444391,-574.07228218,0.00029677,91]
[356223815,1742111444400,-870.94183449,0.00029677,30]
[356223816,1742111444410,-1000.0,0.00029677,30]
[356223817,1742111444419,-503.14308834,0.00029677,120]
[356223818,1742111444428,-160.61915199,0.00029677,120]
[356223819,1742111444437,-766.30211172,0.00029677,120]
[356223820,1742111444447,-734.94757276,0.00029677,30]
[356223821,1742111444456,-1025.81799449,0.00029677,120]
[356223822,1742111444466,-398.57083617,0.00029677,30]
[356223823,1742111444475,-376.99214407,0.00029677,30]
[356223824,1742111444485,-506.17110801,0.00029677,10]
[356223825,1742111444494,-263.64363238,0.00029677,30]
[356223826,1742111444503,-853.09648401,0.00029677,30]
[356223827,1742111444513,-1588.20064389,0.00029677,30]
[356223828,1742111444522,-861.25590652,0.00029677,30]
[356223829,1742111444531,-182.52882371,0.00029677,90]
[356223830,1742111444541,-927.69405642,0.00029677,30]
[356223831,1742111444550,-291.18847857,0.00029677,60]
[356223832,1742111444559,-1097.80128761,0.00029677,120]
[356223833,1742111444569,-323.46279562,0.00029677,30]
[356223834,1742111444579,-207.63717779,0.00029677,30]
[356223835,1742111444588,-958.39091014,0.00029677,30]